[Event "31st MPL National U18 Chess-ch 2022"]
[Site "Pollachi"]
[Date "2022.04.20"]
[Round "6.7"]
[White "Dinesh Rajan M"]
[Black "Arul Anandh S P K"]
[Result "0-1"]
[ECO "B41"]
[WhiteElo "1912"]
[BlackElo "1759"]
[Annotator "TA"]
[PlyCount "198"]
[EventDate "2022.04.18"]
[EventCountry "IND"]
[SourceTitle "playchess.com"]
[Source "ChessBase"]
[SourceQuality "1"]
[TimeControl "5400+30"]

{[%evp 14,198,25,14,56,55,49,43,49,49,52,-38,-26,-41,-26,-25,-28,-19,-22,-40,0,0,0,-16,-9,-103,-76,-85,-102,-102,-62,-110,-93,-165,-120,-143,-114,-254,-251,-248,-135,-135,-127,-154,-133,-155,-165,-168,-162,-222,-228,-211,-218,-348,-343,-287,-136,-286,-220,-198,0,-229,-171,-179,-166,-436,-432,-378,-214,-206,-210,-225,-219,-217,-214,-258,-254,-335,-232,-332,-258,-246,-142,-137,-145,-170,-223,-218,-113,-246,0,0,0,0,0,0,0,-86,-87,-306,-262,-295,-118,-314,-77,-297,-92,-102,-91,-100,-100,-111,0,-72,0,-342,-284,-437,-428,-391,-130,-125,-118,-134,-127,-134,-113,-124,-124,-117,-117,-159,-135,-269,-114,-323,-170,-366,-370,-343,-340,-259,-259,-251,-237,-237,-211,-211,-205,-198,-193,-281,-280,-29977,-29978,-29979,-5580,-5608,-5479,-5189,-4426,-2025,-1092,-6272,-4530,-29970,-4329,-29970,-29971,-29971,-4141,-1414,-800,-721,-629,-29971,-29973,-29967,-29974,-29983,-29970,-29962,-6128,-29985,-29986,-29986,-29987]} 1. e4 {[%emt 0:00:05]} c5 {[%emt 0:00:06]} 2. Nf3 {[%emt 0:00:26]} e6 {[%emt 0:00:08]} 3. d4 {[%emt 0:00:18]} cxd4 {[%emt 0:02:45]} 4. Nxd4 {[%emt 0:00:10]} a6 {[%emt 0:00:07]} 5. c4 {[%emt 0:00:50]} Nf6 {[%emt 0:00:41]} 6. Nc3 {[%emt 0:00:22]} Bb4 {[%emt 0:00:44]} 7. Bd3 {[%emt 0:03:39] 7.Bd3 was played by the boomers.} Qc7 {[%emt 0:08:31]} 8. O-O {[%emt 0:02:01]} O-O {[%emt 0:01:16] B41: Sicilian: Kan Variation: 5 c4.} (8... Bxc3 $5 9. bxc3 d6 $11) 9. Bg5 {[%emt 0:01:48]} Be7 {[%emt 0:02:04]} 10. Re1 {[%emt 0:06:24]} d6 {[%emt 0:00:32] White is slightly better.} 11. Rc1 {[%emt 0:04:10]} Nbd7 {[%emt 0:06:09] [#]} 12. Kh1 $146 {[%emt 0:06:31] [#]} (12. Be3 $14) ({Predecessor:} 12. Bf1 b6 13. b4 Bb7 14. f4 h6 15. Bh4 Rfe8 16. a3 Nxe4 17. Bxe7 Nxc3 18. Bxd6 Qxd6 19. Rxc3 {0-1 (52) Barabas,T (2041)-Tiba,V (2262) Hungary 2017}) 12... Ng4 $1 $15 {[%emt 0:11:53]} 13. Qxg4 {[%emt 0:06:53]} Ne5 $1 {[%emt 0:00:44][%csl LRc4,LRd3,LRg4]} 14. Qg3 {[%emt 0:00:26]} Bxg5 {[%emt 0:00:17]} 15. Rcd1 {[%emt 0:00:59]} Bf6 {[%emt 0:06:54]} 16. f4 {[%emt 0:21:14]} Qb6 {[%emt 0:25:25]} 17. Nb3 {[%emt 0:18:02]} (17. fxe5 Bxe5 18. Qf2 (18. c5 $2 Qxc5 19. Qf3 Bxd4 $19) 18... Bxd4 $17) 17... Ng6 {[%emt 0:03:21]} 18. Qf3 {[%emt 0:00:10]} Bd7 {[%emt 0:02:15]} 19. c5 {[%emt 0:09:05]} (19. Bf1 $11 {remains equal.}) 19... dxc5 $17 {[%emt 0:01:59]} 20. e5 {[%emt 0:01:16] [#]} Bc6 $1 {[%emt 0:00:12]} 21. Be4 {[%emt 0:02:21]} Bxe4 {[%emt 0:01:35]} 22. Nxe4 {[%emt 0:02:09]} (22. Qxe4 $15 Be7 23. Rd7) 22... Be7 {[%emt 0:00:10]} 23. Rd7 {[%emt 0:00:39]} (23. g3 $17) 23... Rab8 {[%emt 0:04:05]} 24. Qe3 {[%emt 0:02:52]} Rfd8 {[%emt 0:03:21]} 25. Red1 {[%emt 0:03:29]} (25. Rxd8+ $17 Rxd8 26. h3) 25... Rxd7 $19 {[%emt 0:00:41]} 26. Rxd7 {[%emt 0:00:04]} Qc6 {[%emt 0:00:23]} (26... Qb5 $19 27. Rd1 c4) 27. Rd2 $17 {[%emt 0:03:24]} ({But not} 27. Nbxc5 $2 b6 28. Nxa6 Ra8 $19) 27... b6 {[%emt 0:01:22]} 28. h3 {[%emt 0:00:12]} Qc7 {[%emt 0:03:18]} 29. a4 {[%emt 0:01:30]} c4 {[%emt 0:02:35]} 30. Nd4 {[%emt 0:00:44]} Rd8 {[%emt 0:01:06]} 31. Ne2 {[%emt 0:01:00]} (31. Nc3 $142) 31... Rxd2 $19 {[%emt 0:01:34]} 32. Qxd2 {[%emt 0:00:25]} Qc6 {[%emt 0:00:03][%csl LRa4,LRe4]} 33. Qd4 {[%emt 0:01:18]} (33. N4c3 $142) 33... Qxa4 {[%emt 0:01:08]} 34. Nd6 {[%emt 0:00:28]} Qc6 {[%emt 0:02:04]} (34... Qb4 $19 35. Ng1 a5) 35. Nxc4 {[%emt 0:00:32]} (35. Qxc4 $17 Qxc4 36. Nxc4) 35... Nh4 {[%emt 0:00:51][%csl Gh4][%cal Rc6g2]} 36. Ne3 {[%emt 0:00:02]} Ng6 $2 {[%emt 0:00:33]} (36... g5 $19 37. Qc4 Qc5 38. Qxc5 (38. Qe4 $2 Ng6 $19) 38... Bxc5) 37. Kh2 $2 {[%emt 0:01:03]} (37. Nc4 $1 $11) 37... Bc5 {[%emt 0:00:15]} 38. Qd8+ {[%emt 0:00:16]} Nf8 {[%emt 0:00:06]} 39. Ng4 $2 {[%emt 0:00:41]} (39. Qd2) 39... Qe4 {[%emt 0:02:32]} 40. Qg5 {[%emt 0:00:49]} Ng6 {[%emt 0:00:41]} ({Inferior is} 40... Qxe2 41. Nh6+ Kh8 42. Nxf7+ Kg8 43. Nh6+ Kh8 44. Nf7+ Kg8 45. Nh6+ Kh8 46. Nf7+ $11) (40... Kh8 $142 41. Ng3 Qd4) 41. Qd8+ {[%emt 0:00:13]} Bf8 {[%emt 0:00:10]} 42. Qd2 {[%emt 0:00:04]} h5 {[%emt 0:00:25]} 43. Nf2 {[%emt 0:00:03]} Qc4 {[%emt 0:00:10]} 44. Nd3 {[%emt 0:00:47]} b5 {[%emt 0:00:10][%cal Oa6a5]} 45. Qd1 {[%emt 0:00:58]} Nh4 {[%emt 0:00:43]} 46. Ng3 {[%emt 0:00:31]} (46. Ne1 $142) 46... Qd5 {[%emt 0:00:20][%csl Gh4][%cal Rd5g2]} 47. Qe2 {[%emt 0:00:09]} g6 {[%emt 0:00:10]} ({Not} 47... Nxg2 $2 48. Qe4 Qxe4 49. Nxe4) (47... a5 $19 {[%cal Oh4g2] Threatens to win with ...Nxg2!} 48. Qe4 Qc4 49. Qxc4 bxc4) 48. Ne4 $17 {[%emt 0:00:06]} Be7 {[%emt 0:00:54]} 49. g4 {[%emt 0:00:25]} hxg4 {[%emt 0:00:29]} 50. hxg4 {[%emt 0:00:02]} a5 {[%emt 0:07:33]} (50... g5 $1 $19 {[%cal Rg5f4]} 51. fxg5 Kg7) 51. Kg3 {[%emt 0:00:29]} (51. Qe3 $17) 51... Qd8 $2 {[%emt 0:00:00]} ({Black should play} 51... g5 $1 $19 52. Nxg5 Bxg5 53. fxg5 Ng6) 52. Qe3 $11 {[%emt 0:01:30]} g5 {[%emt 0:00:00]} 53. fxg5 {[%emt 0:00:24]} Ng6 {[%emt 0:00:00]} 54. Nf6+ {[%emt 0:00:17]} Kg7 {[%emt 0:00:00]} 55. Nf4 {[%emt 0:00:48]} (55. Qe4 $11) 55... Nxf4 $17 {[%emt 0:00:00] Dancing on a razor blade.} 56. Qxf4 {[%emt 0:00:34]} (56. Kxf4 $17 Qc8 57. Nh5+ Kh8 58. Nf6 Qc4+ 59. Kg3) 56... Qd3+ $19 {[%emt 0:00:00]} 57. Kh4 {[%emt 0:00:12]} Qb1 {[%emt 0:00:00]} (57... a4 $19 {aiming for ...b4.} 58. Ne8+ Kf8) 58. Qf2 $2 {[%emt 0:01:49]} (58. Ne8+ $17 {is the only way for White.} Kf8 59. Nd6) 58... Qc1 $2 {[%emt 0:00:00]} (58... Kg6 $1 $19 {has better winning chances.} 59. Kh3 Qh1+ 60. Kg3 Bb4) 59. Qd4 $2 {[%emt 0:00:27]} (59. Nh5+ $17 {was worth a try.} Kg6 60. Nf4+ Kh7 61. Nxe6) 59... Qh1+ $2 {[%emt 0:00:07]} (59... Qe1+ $19 60. Kh3 Kg6) 60. Kg3 $17 {[%emt 0:00:04]} Qe1+ {[%emt 0:00:07]} 61. Kf3 {[%emt 0:00:16]} Qf1+ {[%emt 0:00:33]} 62. Kg3 {[%emt 0:00:08]} Qe1+ {[%emt 0:01:00]} 63. Kf3 $1 {[%emt 0:00:09]} Bxf6 {[%emt 0:02:49]} (63... Kg6 $17) 64. exf6+ $4 {[%emt 0:00:06][%mdl 12288] Endgame KQ-KQ} (64. gxf6+ $11 {and White stays safe.} Kh6 65. Qf4+ Kg6 66. Qh2 Qd1+ 67. Kg3 Qd3+ 68. Kf4 Qd4+ 69. Kf3 Qd1+ 70. Kg3 Qd3+ 71. Kf4 Qd4+ 72. Kf3 Qd3+ 73. Kf4) 64... Kg6 $19 {[%emt 0:00:12]} 65. Qd3+ {[%emt 0:01:18]} (65. Qd7 {keeps fighting.} Qf1+ 66. Kg3) 65... Kxg5 {[%emt 0:00:05]} 66. Qxb5+ {[%emt 0:00:03]} Kxf6 $2 {[%emt 0:01:03]} (66... e5 $1 $19 {White must now prevent ...Qd1+.} 67. Qc4 Qd1+ 68. Kg3 Qg1+ 69. Kf3 Qh1+ 70. Ke3 Qh3+ 71. Kf2 Qh2+ 72. Kf3 Kxf6) 67. Qh5 $17 {[%emt 0:01:49]} Qd1+ {[%emt 0:00:13]} 68. Ke3 {[%emt 0:00:36] g5+ would kill now.} Qb3+ {[%emt 0:00:27]} 69. Kf4 {[%emt 0:00:25][%csl Gf4][%cal Rh5g5]} Qc4+ {[%emt 0:00:16]} 70. Ke3 {[%emt 0:00:14]} Qd5 {[%emt 0:00:36]} 71. Qh8+ {[%emt 0:00:27]} Ke7 {[%emt 0:00:05] And now ...Qg5+ would win. &Nero is more active.} 72. Qb8 {[%emt 0:00:31]} e5 {[%emt 0:00:29]} 73. Qb6 {[%emt 0:01:06] [#] Prevents Qd4+.} (73. Kf2 $17) 73... Qd6 {[%emt 0:02:00]} (73... Qd8 $1 $19 {[%cal Rd8b6] and Black stays clearly on top.} 74. Qb7+ Kf6 75. Qf3+ Kg7) 74. Qb7+ $2 {[%emt 0:00:39]} (74. Qxa5 $17 Qd4+ 75. Kf3) 74... Qd7 {[%emt 0:00:39]} (74... Kf6 $142 {Strongly threatening ...Qd4+.} 75. Qf3+ Kg7) 75. Qe4 $2 {[%emt 0:00:33]} (75. Qb6) 75... Qb5 $19 {[%emt 0:00:11]} 76. Qc2 {[%emt 0:00:20]} Kd6 {[%emt 0:00:22]} 77. Qd2+ {[%emt 0:01:06] [#]} Qd5 $1 {[%emt 0:00:05]} 78. Qe2 {[%emt 0:00:25]} Qd4+ {[%emt 0:00:39]} 79. Kf3 {[%emt 0:00:04]} Qf4+ {[%emt 0:00:19]} 80. Kg2 {[%emt 0:00:03]} Ke7 {[%emt 0:00:17]} 81. Kh3 {[%emt 0:00:50]} Kf6 {[%emt 0:01:20] ...Kg5 is the strong threat.} 82. Qe1 {[%emt 0:00:22]} (82. Qd3 {was the only chance.}) 82... Qf3+ {[%emt 0:00:09]} 83. Kh4 $2 {[%emt 0:00:11]} (83. Kh2 $19) 83... Qg2 {[%emt 0:00:14][%cal Rg2h2]} 84. g5+ {[%emt 0:01:02]} Qxg5+ {[%emt 0:00:06]} (84... Kf5 $142 85. Qg3 Qh1+ 86. Qh3+ Qxh3+ 87. Kxh3 Kxg5 88. Kg2 e4 89. Kf2 Kf5 90. Kg3 Ke5 91. Kg2 f5 92. Kf2 a4 93. Kg3 e3 94. Kg2 Ke4 95. Kf1 f4 96. Ke2 f3+ 97. Ke1 e2 98. Kd2 Kd4 99. b4 axb3 100. Ke1 b2 101. Kf2 b1=Q 102. Kg3 e1=Q+ 103. Kh3 Qf5+ 104. Kh2 Qh7#) 85. Kh3 {[%emt 0:00:04]} Qf5+ {[%emt 0:00:12]} 86. Kg3 {[%emt 0:00:16]} Qf4+ {[%emt 0:00:45]} 87. Kg2 {[%emt 0:00:17]} a4 {[%emt 0:00:06] ( -> ...Kg5)} 88. Qa5 {[%emt 0:00:35]} Qe4+ {[%emt 0:00:12]} 89. Kf2 {[%emt 0:00:29]} Qd4+ {[%emt 0:01:06]} (89... Kf5 $142 90. Qa6 Qc2+ 91. Kg3 Qb3+ 92. Kh4 Qb4+ 93. Kg3 Kg5 94. Qa8 Qb3+ 95. Kf2 Qxb2+ 96. Kf3 Qb3+ 97. Ke4 Qc4+ 98. Ke3 Qd4+ 99. Kf3 Qd3+ 100. Kg2 a3 101. Kh2 Qc2+ 102. Kh3 a2 103. Qg8+ Kf4 104. Qg3+ Ke4 105. Qh4+ Kd3 106. Qd8+ Kc3 107. Qc7+ Kb2 108. Qb8+ Qb3+ 109. Qxb3+ Kxb3 110. Kg4 a1=Q 111. Kf5 Kc4 112. Kg5 Qf1 113. Kh6 Kd5 114. Kh7 Qg2 115. Kh8 Ke6 116. Kh7 Kf6 117. Kh8 Qg7#) 90. Kf3 {[%emt 0:00:30]} Kf5 {[%emt 0:00:48]} 91. Qb5 {[%emt 0:00:49]} Qe4+ {[%emt 0:00:59]} (91... Qd1+ $142 92. Kg2 Qc2+ 93. Kh1 Kf4 94. Qf1+ Ke4 95. Qe1+ Kd3 96. Qg3+ Kd4 97. Qg1+ Kd5 98. Qg8 Qb1+ 99. Kh2 Qxb2+ 100. Kh3 Qb3+ 101. Kh4 Qc4+ 102. Kh3 Qf1+ 103. Kh2 Qf4+ 104. Kg1 Ke4 105. Qg2+ Kd3 106. Qg8 Ke3 107. Qc8 a3 108. Qh3+ Kd2 109. Qg2+ Ke1 110. Qa8 Qg3+ 111. Kh1 Kf2 112. Qa7+ Qe3 113. Qxf7+ Qf3+ 114. Qxf3+ Kxf3 115. Kh2 a2 116. Kh3 a1=Q 117. Kh4 Kf4 118. Kh5 Qa6 119. Kh4 Qh6#) 92. Kg3 {[%emt 0:00:41]} Qf4+ {[%emt 0:00:06]} 93. Kg2 {[%emt 0:00:07]} Qd2+ {[%emt 0:00:52]} 94. Kf3 {[%emt 0:00:29]} Qd1+ {[%emt 0:00:14]} 95. Kf2 {[%emt 0:00:35]} Kf4 {[%emt 0:00:09]} 96. Qa6 {[%emt 0:00:39]} Qc2+ {[%emt 0:01:06]} 97. Kf1 {[%emt 0:01:00]} Qb1+ {[%emt 0:00:07]} 98. Kg2 {[%emt 0:00:11]} Qg6+ {[%emt 0:00:04]} 99. Qxg6 {[%emt 0:00:38]} fxg6 {[%emt 0:00:06] Weighted Error Value: White=0.66/Black=0.42} 0-1

[Event "31st MPL National U18 Chess-ch 2022"]
[Site "Pollachi"]
[Date "2022.04.20"]
[Round "6.8"]
[White "Mahendra Teja Mekala"]
[Black "Vengatesh Krishnan C"]
[Result "1/2-1/2"]
[ECO "A01"]
[WhiteElo "1875"]
[BlackElo "1506"]
[Annotator "NA RC COMBH"]
[PlyCount "104"]
[EventDate "2022.04.18"]
[EventCountry "IND"]
[SourceTitle "playchess.com"]
[Source "ChessBase"]
[SourceQuality "1"]
[TimeControl "5400+30"]

{[%evp 16,85,43,38,53,32767,32767,32767,20,32767,32767,32767,60,37,47,41,65,26,25,34,32767,32767,32767,32767,32767,32767,62,69,95,32767,71,40,198,45,47,0,0,-138,-136,-189,-199,-203,-165,-167,-173,-159,-113,32767,-107,-108,-100,-102,-114,-117,-92,32767,-108,-112,-92,-93,-108,32767,-113,32767,32767,-119,-6,-4,0,0,0,0]} 1. b3 {[%emt 0:00:23]} d5 {[%emt 0:00:41]} 2. Bb2 {[%emt 0:00:07]} c5 {[%emt 0:00:28]} 3. e3 {[%emt 0:00:17]} Nc6 {[%emt 0:01:25]} 4. Bb5 {[%emt 0:00:14]} Qc7 {[%emt 0:00:48]} 5. f4 {[%emt 1:31:59]} e6 {[%emt 0:00:59]} 6. Nf3 {[%emt 0:00:00]} f6 {[%emt 0:00:35]} 7. O-O {[%emt 0:00:00]} Bd6 {[%emt 0:00:26]} 8. Nh4 {[%emt 0:01:30]} Qf7 {[%emt 1:29:08]} (8... Nge7 $15) 9. c4 {[%emt 0:00:30]} Nge7 {[%emt 0:00:00]} 10. Nc3 {[%emt 0:00:00]} Bd7 {[%emt 0:01:00]} 11. cxd5 {[%emt 0:01:00]} exd5 {[%emt 0:00:00]} 12. e4 {[%emt 0:00:00]} d4 {[%emt 0:00:00]} 13. Bc4 {[%emt 0:01:00]} Be6 {[%emt 0:00:00]} 14. Nb5 {[%emt 0:00:30]} O-O-O {[%emt 0:02:00]} 15. Nxd6+ {[%emt 0:00:30]} Rxd6 {[%emt 0:00:00]} 16. Bxe6+ {[%emt 0:00:00]} Qxe6 {[%emt 0:00:00]} 17. d3 {[%emt 0:00:00]} b6 {[%emt 0:00:00]} 18. a3 {[%emt 0:01:30]} Kb8 {[%emt 0:00:00]} 19. b4 {[%emt 0:00:30]} cxb4 {[%emt 0:00:00]} 20. axb4 {[%emt 0:00:30]} Nxb4 {[%emt 0:00:00]} 21. Ba3 {[%emt 0:00:00]} Nec6 {[%emt 0:00:00]} 22. Qa4 {[%emt 0:01:00]} a5 {[%emt 0:00:00]} ({Less strong is} 22... Nxd3 23. Qa6 Ndb4 24. Bxb4 $18) 23. Rfb1 {[%emt 0:00:30]} Kb7 {[%emt 0:00:00] [#]} (23... Kc7 $1 $14) 24. Bxb4 {[%emt 0:00:00]} ({White should try} 24. Nf3 $1 $16 {[%cal Rf3d2]} Rdd8 25. Nd2) 24... Nxb4 {[%emt 0:00:36]} 25. Nf5 {[%emt 0:00:00]} (25. Rxb4 axb4 26. Qa7+ Kc6) 25... Rd7 $1 {[%emt 0:00:23]} 26. Qb5 {[%emt 0:00:00]} (26. Rxb4 $11 axb4 27. h3) 26... Ra8 {[%emt 0:00:40]} 27. Rc1 {[%emt 0:00:00]} (27. Rxa5 $17 Rxa5 28. Qxb4) 27... g6 {[%emt 0:04:51]} 28. Ng3 {[%emt 0:00:00]} Rc7 {[%emt 0:00:00]} 29. Rxc7+ {[%emt 0:00:00]} Kxc7 {[%emt 0:00:00]} 30. Ne2 {[%emt 0:00:00]} Qd6 {[%emt 0:01:30]} ({Black should try} 30... Rc8 $19 31. g3 (31. Nxd4 Qd6 $17) 31... Rd8) 31. e5 {[%emt 0:00:00]} fxe5 {[%emt 0:00:00]} 32. fxe5 {[%emt 0:00:00]} Qd5 {[%emt 0:00:00]} 33. Qxd5 {[%emt 0:00:00]} Nxd5 {[%emt 0:01:30]} 34. Nxd4 {[%emt 0:00:00]} Nb4 {[%emt 0:00:00]} 35. Rf1 {[%emt 0:00:00]} Re8 {[%emt 0:00:00]} 36. Rf7+ {[%emt 0:00:00] [#]} Kb8 $1 {[%emt 0:00:00]} 37. e6 {[%emt 0:00:00]} a4 {[%emt 0:02:00]} ({Reject} 37... Nxd3 $6 38. Nc6+ Kc8 39. Na7+ Kb8 40. Nc6+ Kc8 41. Na7+ Kb8 42. Nc6+ $11) 38. e7 {[%emt 0:00:00]} Kc8 {[%emt 0:00:00]} (38... Nxd3 $2 39. Rf8 Kc8 40. Rxe8+ $18) 39. Nb5 {[%emt 0:00:00]} Kd7 {[%emt 0:01:00]} 40. Rf4 {[%emt 0:00:00]} Nc6 {[%emt 0:00:00]} (40... Nxd3 $17 41. Rxa4 Rxe7 42. Ra7+ Ke6) 41. Rxa4 {[%emt 0:00:00]} Rxe7 {[%emt 0:00:00]} 42. Ra6 {[%emt 0:00:00]} Nb4 {[%emt 0:00:00]} 43. Rxb6 $11 {[%emt 0:00:00]} Re1+ {[%emt 0:00:00]} 44. Kf2 {[%emt 0:00:00]} Nxd3+ {[%emt 0:00:00]} 45. Kf3 {[%emt 0:00:00]} Re5 {[%emt 0:00:42]} 46. Nd4 {[%emt 0:00:00]} Nc5 {[%emt 0:00:30]} 47. Rb8 {[%emt 0:00:00]} Rd5 {[%emt 0:00:56]} 48. Nc2 {[%emt 0:00:00]} Rf5+ {[%emt 0:00:16]} 49. Ke2 {[%emt 0:00:19]} Ne6 {[%emt 0:00:55]} 50. Ne3 {[%emt 0:01:49]} Rc5 {[%emt 0:00:22]} 51. Rh8 {[%emt 0:00:42]} h5 {[%emt 0:00:19]} 52. g3 {[%emt 0:01:11]} Ke7 {[%emt 0:00:23]} 1/2-1/2

[Event "31st MPL National U18 Chess-ch 2022"]
[Site "Pollachi"]
[Date "2022.04.20"]
[Round "6.9"]
[White "Krishnan Ritvik"]
[Black "Nawin M S"]
[Result "1-0"]
[ECO "B27"]
[WhiteElo "1761"]
[BlackElo "1704"]
[Annotator "NA RC COMBH"]
[PlyCount "153"]
[EventDate "2022.04.18"]
[EventCountry "IND"]
[SourceTitle "playchess.com"]
[Source "ChessBase"]
[SourceQuality "1"]
[TimeControl "5400+30"]

1. e4 {[%emt 1:31:00]} c5 {[%emt 0:00:24]} 2. Nf3 {[%emt 0:00:30]} g6 3. c3 {[%emt 0:00:30]} Bg7 {[%emt 0:00:41]} 4. d4 {[%emt 0:00:30]} cxd4 {[%emt 0:00:46]} 5. cxd4 {[%emt 0:00:00]} d5 {[%emt 0:00:08]} 6. e5 {[%emt 0:01:00]} a6 {[%emt 1:31:31]} 7. h3 {[%emt 0:00:00]} Nc6 {[%emt 0:00:30]} 8. Nc3 {[%emt 0:01:00]} f6 {[%emt 0:00:30]} 9. Bf4 {[%emt 0:00:30]} fxe5 {[%emt 0:00:30]} 10. Nxe5 {[%emt 0:00:30]} Nxe5 {[%emt 0:00:30]} 11. Bxe5 {[%emt 0:00:30]} Bxe5 {[%emt 0:00:00]} 12. dxe5 {[%emt 0:00:00]} e6 {[%emt 0:00:00]} 13. Bd3 {[%emt 0:01:00]} Ne7 {[%emt 0:01:30]} 14. Qf3 {[%emt 0:00:30]} Nc6 {[%emt 0:00:30]} 15. Qg3 {[%emt 0:00:30]} Qc7 {[%emt 0:00:30]} 16. O-O {[%emt 0:00:30]} Qxe5 {[%emt 0:00:00]} 17. f4 Qd4+ {[%emt 0:01:00]} 18. Kh2 {[%emt 0:01:00]} O-O {[%emt 0:00:30]} 19. Rad1 {[%emt 0:00:30]} Qg7 {[%emt 0:00:30]} 20. Na4 {[%emt 0:00:30]} b5 {[%emt 0:00:30]} 21. Nc5 {[%emt 0:00:00]} Ra7 {[%emt 0:00:00]} 22. Rc1 Rc7 {[%emt 0:00:00]} 23. Rfe1 Nd4 {[%emt 0:01:30]} 24. b4 {[%emt 0:02:00]} Rcf7 {[%emt 0:00:30]} 25. Rf1 {[%emt 0:00:30]} Kh8 {[%emt 0:00:00]} 26. Qe3 {[%emt 0:00:30]} Re7 {[%emt 0:01:00]} 27. Bb1 {[%emt 0:00:30]} Rfe8 {[%emt 0:00:30]} 28. Nd3 {[%emt 0:00:00]} Nf5 {[%emt 0:00:00]} 29. Qe2 Nd6 {[%emt 0:01:00]} 30. Rc6 {[%emt 0:00:00]} Nc4 {[%emt 0:00:30]} 31. Nc5 {[%emt 0:02:00]} Rc7 {[%emt 0:00:30]} 32. Rxc7 {[%emt 0:00:00]} Qxc7 {[%emt 0:00:30]} 33. Bd3 {[%emt 0:01:00]} Nb6 {[%emt 0:00:00]} 34. Kh1 {[%emt 0:00:00]} Qf7 {[%emt 0:01:00]} 35. Kh2 {[%emt 0:01:00]} Nd7 {[%emt 0:00:30]} 36. Qb2+ {[%emt 0:00:30]} Kg8 {[%emt 0:00:00]} 37. Qd4 {[%emt 0:00:00]} Nxc5 {[%emt 0:01:00]} 38. Qxc5 {[%emt 0:00:00]} Qe7 {[%emt 0:00:30]} 39. Qd4 {[%emt 0:00:00]} Bb7 {[%emt 0:00:00]} 40. Re1 Qg7 {[%emt 0:01:00]} 41. Re5 {[%emt 0:00:00]} Qc7 {[%emt 0:00:00]} 42. Qe3 {[%emt 0:00:00]} Rf8 {[%emt 0:00:00]} 43. h4 {[%emt 0:00:00]} Qf7 {[%emt 0:00:11]} 44. h5 {[%emt 0:04:00]} Kg7 {[%emt 0:01:49]} 45. hxg6 {[%emt 0:00:30]} hxg6 {[%emt 0:00:00]} 46. Rxe6 {[%emt 0:00:00]} Qxf4+ {[%emt 0:00:03]} 47. Qxf4 {[%emt 0:00:00]} Rxf4 {[%emt 0:00:01]} 48. Rxg6+ {[%emt 0:01:30]} Kf8 {[%emt 0:00:20]} 49. Rb6 {[%emt 0:00:00]} Rf7 {[%emt 0:00:22]} 50. g4 {[%emt 0:00:00]} Kg7 {[%emt 0:00:45]} 51. Bf5 {[%emt 0:00:00]} Rc7 {[%emt 0:00:29]} 52. Kg3 Bc8 {[%emt 0:02:00]} 53. Bxc8 {[%emt 0:00:00]} Rxc8 {[%emt 0:00:00]} 54. Rxa6 Rc3+ {[%emt 0:01:00]} 55. Kh4 {[%emt 0:03:30]} d4 {[%emt 0:00:30]} 56. Kh5 {[%emt 0:00:30]} Rh3+ {[%emt 0:00:00]} 57. Kg5 {[%emt 0:00:30]} Rh2 {[%emt 0:01:00]} 58. Rd6 {[%emt 0:00:00]} Rd2 {[%emt 0:00:30]} 59. Rd7+ {[%emt 0:00:00]} Kf8 {[%emt 0:00:00]} 60. Kf6 {[%emt 0:00:00]} Rf2+ {[%emt 0:00:00]} 61. Ke5 {[%emt 0:00:00]} Re2+ {[%emt 0:00:00]} 62. Kd5 {[%emt 0:00:00]} Rc2 {[%emt 0:01:06]} 63. Ke4 {[%emt 0:00:00]} Rg2 {[%emt 0:00:48]} 64. Rxd4 {[%emt 0:00:00]} Rxg4+ {[%emt 0:00:05]} 65. Kd5 {[%emt 0:00:00]} Rg2 {[%emt 0:00:19]} 66. Kc5 {[%emt 0:00:00]} Ke7 {[%emt 0:00:25]} 67. Kxb5 {[%emt 0:00:00]} Rxa2 {[%emt 0:00:00]} 68. Kc6 {[%emt 0:00:00]} Rc2+ {[%emt 0:00:19]} 69. Kb6 {[%emt 0:00:00]} Rc1 {[%emt 0:00:43]} 70. b5 {[%emt 0:00:00]} Rb1 {[%emt 0:00:30]} 71. Kc6 {[%emt 0:00:00]} Rc1+ {[%emt 0:00:19]} 72. Kb7 {[%emt 0:00:00]} Rb1 {[%emt 0:00:17]} 73. b6 {[%emt 0:00:00]} Rb2 {[%emt 0:00:06]} 74. Kc7 {[%emt 0:00:00]} Rc2+ {[%emt 0:00:30]} 75. Kb8 {[%emt 0:00:00]} Rc1 {[%emt 0:00:18]} 76. b7 {[%emt 0:00:00]} Rc2 {[%emt 0:00:30]} 77. Ra4 {[%emt 0:00:00]} 1-0

[Event "31st MPL National U18 Chess-ch 2022"]
[Site "Pollachi"]
[Date "2022.04.20"]
[Round "6.10"]
[White "Manish Anto Cristiano F"]
[Black "Gokulakrishna S"]
[Result "1-0"]
[ECO "E19"]
[WhiteElo "2236"]
[BlackElo "1400"]
[Annotator "TA"]
[PlyCount "91"]
[EventDate "2022.04.18"]
[EventCountry "IND"]
[SourceTitle "playchess.com"]
[Source "ChessBase"]
[SourceQuality "1"]
[TimeControl "5400+30"]

{[%evp 19,91,12,20,0,10,0,18,0,3,16,12,6,34,37,47,13,39,40,40,40,45,46,50,41,49,36,50,48,97,98,127,132,142,138,139,137,191,191,183,181,175,172,451,451,433,412,545,557,557,487,624,556,819,818,1922,1847,1899,1856,12809,6289,29986,29987,29987,29988,29988,29988,29988,29989,29989,29989,29993,29994,29997,29994]} 1. d4 {[%emt 1:31:00]} Nf6 {[%emt 1:31:00]} 2. c4 {[%emt 0:00:30]} e6 {[%emt 0:00:30]} 3. Nf3 {[%emt 0:00:30]} b6 {[%emt 0:00:30]} 4. g3 {[%emt 0:00:30]} Bb7 {[%emt 0:00:30]} 5. Bg2 {[%emt 0:00:30]} Be7 6. O-O O-O 7. Nc3 Ne4 8. Qc2 Nxc3 9. Qxc3 d6 10. Qc2 f5 11. d5 {E19: Queen's Indian: Old Main Line with 7...Ne4 8 Qc2 Nxc3 8 Qxc3.} e5 {Against Nd4} ({Don't play} 11... exd5 12. Nd4 $16) 12. e4 fxe4 13. Nd2 {The position is equal.} e3 14. fxe3 Bc8 15. Ne4 {[#]} g6 $146 ({Predecessor:} 15... a5 16. Bd2 Nd7 17. b3 Qe8 18. Rxf8+ Qxf8 19. Rf1 Qe8 20. Bh3 Nf6 21. Bxc8 Qxc8 {½-½ (45) Taimanov,M-Kortschnoj,V Riga 1954}) 16. Bd2 Bf5 17. Rae1 Nd7 18. Qd1 Nc5 19. Nxc5 bxc5 20. e4 Bd7 21. Ba5 Rb8 22. b3 Bf6 23. Rf2 Qc8 {Black is now going downhill.} (23... Rc8 $14) 24. Ref1 $16 Kg7 25. Qc1 {Hoping for Bd2.} Be7 26. Rxf8 Bxf8 {[#]} 27. Qg5 $1 {0x0.0023821a128edp-1022s more active pieces.} Qd8 {Inhibits Qf6+.} (27... Kg8 $16) 28. Qxd8 $18 Rxd8 29. Bxc7 Rc8 30. Rxf8 $1 Rxf8 (30... Rxc7 {is a better defense.} 31. Rb8 Kf6 32. Rf8+ Kg7) 31. Bxd6 {[%mdl 4096] Endgame KRB-KB} Re8 32. Bxc5 a5 33. Bb6 a4 34. c5 {Black must now prevent c6.} Rc8 35. b4 a3 36. Bf1 Rf8 37. c6 Be8 38. Be2 Kf6 39. b5 {Threatening mate with Bc5.} Bf7 40. Bc5 {[%csl LRa3,LRf8] White mates.} Ra8 41. b6 Ra5 {[#]} 42. b7 $1 Rxc5 43. b8=Q Rc2 44. c7 Rxe2 45. c8=Q Rxa2 46. Qb6+ {Weighted Error Value: White=0.07 (flawless) /Black=0.47} 1-0